[Event "Late-Titled-Tuesday-Blitz-June-25-2024"]
[Site "Chess.com"]
[Date "2024.06.25"]
[Round "7"]
[White "DucksParadise"]
[Black "Roedor"]
[Result "1/2-1/2"]
[WhiteElo "2578"]
[BlackElo "2402"]
[TimeControl "180+1"]
[EndTime "15:17:08 PDT"]
[Termination "Game drawn by repetition"]

1. c4 {[%clk 0:03:00.9]} 1... Nf6 {[%clk 0:02:58.2]} 2. g3 {[%clk 0:03:00.6]}
2... g6 {[%clk 0:02:58]} 3. Bg2 {[%clk 0:03:01.5]} 3... Bg7 {[%clk 0:02:58.5]}
4. Nc3 {[%clk 0:03:00]} 4... O-O {[%clk 0:02:58.9]} 5. e4 {[%clk 0:02:59.5]}
5... e5 {[%clk 0:02:53.6]} 6. Nge2 {[%clk 0:02:58.9]} 6... c6 {[%clk 0:02:52.6]}
7. O-O {[%clk 0:02:59.1]} 7... Na6 {[%clk 0:02:53.2]} 8. d3 {[%clk 0:02:58.7]}
8... Nc7 {[%clk 0:02:53.4]} 9. h3 {[%clk 0:02:50.8]} 9... d5 {[%clk 0:02:53.3]}
10. exd5 {[%clk 0:02:50.5]} 10... cxd5 {[%clk 0:02:54.2]} 11. Bg5 {[%clk
0:02:50.7]} 11... d4 {[%clk 0:02:53]} 12. Ne4 {[%clk 0:02:50.4]} 12... Ne6
{[%clk 0:02:51.1]} 13. Nxf6+ {[%clk 0:02:47.4]} 13... Bxf6 {[%clk 0:02:51.1]}
14. Bxf6 {[%clk 0:02:48.3]} 14... Qxf6 {[%clk 0:02:50.8]} 15. f4 {[%clk
0:02:45]} 15... exf4 {[%clk 0:02:49.2]} 16. Nxf4 {[%clk 0:02:45.9]} 16... Qg5
{[%clk 0:02:47.3]} 17. Qf3 {[%clk 0:02:34.3]} 17... Rb8 {[%clk 0:02:47.3]} 18.
Nd5 {[%clk 0:02:22.3]} 18... b5 {[%clk 0:02:45.3]} 19. b3 {[%clk 0:02:12.9]}
19... bxc4 {[%clk 0:02:45.2]} 20. dxc4 {[%clk 0:02:12.6]} 20... Bb7 {[%clk
0:02:38.8]} 21. Rad1 {[%clk 0:02:00.6]} 21... Kg7 {[%clk 0:02:29.3]} 22. Qf6+
{[%clk 0:01:49.1]} 22... Qxf6 {[%clk 0:02:28.8]} 23. Nxf6 {[%clk 0:01:50]} 23...
Bxg2 {[%clk 0:02:27.9]} 24. Kxg2 {[%clk 0:01:50.9]} 24... Rfd8 {[%clk
0:02:24.4]} 25. Nd5 {[%clk 0:01:39.3]} 25... a5 {[%clk 0:02:19.8]} 26. Rd3
{[%clk 0:01:32]} 26... a4 {[%clk 0:02:18.3]} 27. b4 {[%clk 0:01:31.2]} 27...
Rbc8 {[%clk 0:02:10.5]} 28. Nb6 {[%clk 0:01:27.8]} 28... Rc6 {[%clk 0:02:03.1]}
29. c5 {[%clk 0:01:25.5]} 29... Rb8 {[%clk 0:01:36]} 30. a3 {[%clk 0:01:23]}
30... Rbxb6 {[%clk 0:01:33.8]} 31. cxb6 {[%clk 0:01:22.6]} 31... Rxb6 {[%clk
0:01:34.7]} 32. Rc1 {[%clk 0:01:20.9]} 32... Kf6 {[%clk 0:01:34.7]} 33. Rc8
{[%clk 0:01:17.8]} 33... Ke5 {[%clk 0:01:34.3]} 34. Kf3 {[%clk 0:01:16.3]} 34...
h5 {[%clk 0:01:32.9]} 35. h4 {[%clk 0:01:15.5]} 35... g5 {[%clk 0:01:31.5]} 36.
hxg5 {[%clk 0:01:09.7]} 36... Nxg5+ {[%clk 0:01:31.3]} 37. Ke2 {[%clk
0:01:09.6]} 37... Ke4 {[%clk 0:01:29.1]} 38. Rc5 {[%clk 0:00:55.3]} 38... Rg6
{[%clk 0:01:14.9]} 39. b5 {[%clk 0:00:47.8]} 39... Ne6 {[%clk 0:01:14.9]} 40.
Rxh5 {[%clk 0:00:43.6]} 40... f5 {[%clk 0:01:03.7]} 41. Rh4+ {[%clk 0:00:35.4]}
41... f4 {[%clk 0:01:01.9]} 42. gxf4 {[%clk 0:00:26.8]} 42... Rg2+ {[%clk
0:00:44.9]} 43. Kf1 {[%clk 0:00:26.1]} 43... Rb2 {[%clk 0:00:45.3]} 44. Rd1
{[%clk 0:00:11.1]} 44... d3 {[%clk 0:00:39.4]} 45. Re1+ {[%clk 0:00:06.5]} 45...
Kf5 {[%clk 0:00:18.8]} 46. Rh5+ {[%clk 0:00:06.4]} 46... Kg4 {[%clk 0:00:18.5]}
47. Rd5 {[%clk 0:00:05]} 47... Nxf4 {[%clk 0:00:17.7]} 48. Rd4 {[%clk 0:00:05]}
48... Kf3 {[%clk 0:00:16.2]} 49. Rb4 {[%clk 0:00:04.2]} 49... Rf2+ {[%clk
0:00:15]} 50. Kg1 {[%clk 0:00:04.3]} 50... Rg2+ {[%clk 0:00:15.1]} 51. Kh1
{[%clk 0:00:04.6]} 51... Re2 {[%clk 0:00:14.6]} 52. Rf1+ {[%clk 0:00:04.5]}
52... Kg3 {[%clk 0:00:14.2]} 53. Rbxf4 {[%clk 0:00:04.4]} 53... Rh2+ {[%clk
0:00:14.2]} 54. Kg1 {[%clk 0:00:04.9]} 54... Rg2+ {[%clk 0:00:15.1]} 55. Kh1
{[%clk 0:00:05.4]} 55... Rh2+ {[%clk 0:00:16]} 56. Kg1 {[%clk 0:00:05.9]} 56...
Rg2+ {[%clk 0:00:16.9]} 57. Kh1 {[%clk 0:00:06.4]} 57... Rh2+ {[%clk 0:00:17.8]}
1/2-1/2

[Event "Late-Titled-Tuesday-Blitz-June-25-2024"]
[Site "Chess.com"]
[Date "2024.06.25"]
[Round "7"]
[White "GM_dmitrij"]
[Black "Zurability"]
[Result "1-0"]
[WhiteElo "2980"]
[BlackElo "2768"]
[TimeControl "180+1"]
[EndTime "15:17:09 PDT"]
[Termination "GM_dmitrij won by resignation"]

1. e4 {[%clk 0:03:00.9]} 1... c5 {[%clk 0:02:58.3]} 2. Nf3 {[%clk 0:03:00.8]}
2... d6 {[%clk 0:02:58.2]} 3. d4 {[%clk 0:03:01.1]} 3... cxd4 {[%clk 0:02:58.8]}
4. Nxd4 {[%clk 0:03:02]} 4... Nf6 {[%clk 0:02:58.8]} 5. Nc3 {[%clk 0:03:02.5]}
5... g6 {[%clk 0:02:57.9]} 6. Be3 {[%clk 0:03:01.6]} 6... Bg7 {[%clk 0:02:57.9]}
7. f3 {[%clk 0:03:01.8]} 7... a6 {[%clk 0:02:55.2]} 8. Qd2 {[%clk 0:03:00.8]}
8... Nbd7 {[%clk 0:02:55.2]} 9. O-O-O {[%clk 0:02:59.7]} 9... b5 {[%clk
0:02:54.6]} 10. Kb1 {[%clk 0:02:58.3]} 10... Bb7 {[%clk 0:02:54.2]} 11. Bh6
{[%clk 0:02:53.7]} 11... Bxh6 {[%clk 0:02:52.1]} 12. Qxh6 {[%clk 0:02:54.6]}
12... Rc8 {[%clk 0:02:52.1]} 13. Bd3 {[%clk 0:02:22.3]} 13... Rxc3 {[%clk
0:02:44.9]} 14. bxc3 {[%clk 0:02:23.2]} 14... Qc7 {[%clk 0:02:45.1]} 15. Ne2
{[%clk 0:02:19.3]} 15... Nb6 {[%clk 0:02:35.5]} 16. h4 {[%clk 0:02:13.4]} 16...
Rg8 {[%clk 0:02:26.5]} 17. Qe3 {[%clk 0:01:57.8]} 17... Na4 {[%clk 0:02:21.9]}
18. Qd4 {[%clk 0:01:55.6]} 18... Nd7 {[%clk 0:02:07.1]} 19. Qb4 {[%clk
0:01:47.3]} 19... Ne5 {[%clk 0:01:52]} 20. c4 {[%clk 0:01:30.1]} 20... a5 {[%clk
0:01:26.2]} 21. Qa3 {[%clk 0:01:20.3]} 21... Nxc4 {[%clk 0:01:21.1]} 22. Bxc4
{[%clk 0:01:20.8]} 22... Qxc4 {[%clk 0:01:22]} 23. Qd3 {[%clk 0:01:19.8]} 23...
Qc5 {[%clk 0:01:02]} 24. Qd4 {[%clk 0:01:10.1]} 24... Kd7 {[%clk 0:00:23.1]} 25.
Qxc5 {[%clk 0:00:57.1]} 25... Nxc5 {[%clk 0:00:24]} 26. Nd4 {[%clk 0:00:58]}
26... b4 {[%clk 0:00:22.2]} 27. Nb3 {[%clk 0:00:58.4]} 27... Na4 {[%clk
0:00:20.5]} 28. Rd4 {[%clk 0:00:50.6]} 28... Ra8 {[%clk 0:00:18.2]} 29. e5
{[%clk 0:00:43.8]} 29... d5 {[%clk 0:00:16.3]} 30. a3 {[%clk 0:00:43.4]} 30...
Nc3+ {[%clk 0:00:14.6]} 31. Kb2 {[%clk 0:00:32.8]} 31... Nb5 {[%clk 0:00:14.6]}
32. Rdd1 {[%clk 0:00:29.8]} 32... Nxa3 {[%clk 0:00:10]} 33. Nc5+ {[%clk
0:00:29.8]} 33... Kc6 {[%clk 0:00:10]} 34. Nxb7 {[%clk 0:00:30.7]} 34... Nc4+
{[%clk 0:00:09.6]} 35. Ka2 {[%clk 0:00:30.2]} 35... Kxb7 {[%clk 0:00:08.9]} 36.
Rxd5 {[%clk 0:00:30.8]} 36... Nb6 {[%clk 0:00:08.7]} 37. Rd4 {[%clk 0:00:26.6]}
37... Rc8 {[%clk 0:00:08.9]} 38. Kb3 {[%clk 0:00:20.5]} 38... Rc3+ {[%clk
0:00:07.6]} 39. Kb2 {[%clk 0:00:19.7]} 39... Nc4+ {[%clk 0:00:06.6]} 40. Kc1
{[%clk 0:00:15.3]} 40... a4 {[%clk 0:00:05.6]} 41. Rhd1 {[%clk 0:00:12.1]} 41...
a3 {[%clk 0:00:05.6]} 42. Kb1 {[%clk 0:00:12.7]} 42... Kc6 {[%clk 0:00:02.9]}
43. R1d3 {[%clk 0:00:12.4]} 43... Rxd3 {[%clk 0:00:01.7]} 44. cxd3 {[%clk
0:00:10.9]} 44... Nxe5 {[%clk 0:00:01.8]} 45. Rxb4 {[%clk 0:00:09.6]} 45... Nxd3
{[%clk 0:00:02.1]} 46. Rb8 {[%clk 0:00:09.2]} 46... Nf4 {[%clk 0:00:02.1]} 47.
g3 {[%clk 0:00:08.1]} 47... Ne2 {[%clk 0:00:02.6]} 48. g4 {[%clk 0:00:08.6]}
48... Nd4 {[%clk 0:00:03]} 49. Rh8 {[%clk 0:00:08.1]} 49... Nxf3 {[%clk
0:00:02.7]} 50. Rxh7 {[%clk 0:00:08.7]} 50... f5 {[%clk 0:00:02.4]} 51. gxf5
{[%clk 0:00:07.9]} 51... gxf5 {[%clk 0:00:03.3]} 52. h5 {[%clk 0:00:08.8]} 52...
f4 {[%clk 0:00:03]} 53. h6 {[%clk 0:00:08.8]} 53... Ng5 {[%clk 0:00:02.9]} 54.
Rg7 {[%clk 0:00:09.4]} 54... f3 {[%clk 0:00:02.8]} 55. Rxg5 {[%clk 0:00:09.5]}
55... f2 {[%clk 0:00:02.8]} 56. Rf5 {[%clk 0:00:10]} 1-0

[Event "Late-Titled-Tuesday-Blitz-June-25-2024"]
[Site "Chess.com"]
[Date "2024.06.25"]
[Round "7"]
[White "ATM622"]
[Black "AlphaPerseii"]
[Result "0-1"]
[WhiteElo "2523"]
[BlackElo "2390"]
[TimeControl "180+1"]
[EndTime "15:17:09 PDT"]
[Termination "AlphaPerseii won by resignation"]

1. d4 {[%clk 0:03:00.9]} 1... d5 {[%clk 0:03:00]} 2. c4 {[%clk 0:03:00.8]} 2...
c6 {[%clk 0:02:59.7]} 3. Nf3 {[%clk 0:03:00.9]} 3... Nf6 {[%clk 0:02:57.3]} 4.
Nbd2 {[%clk 0:03:01.4]} 4... Bf5 {[%clk 0:02:47.1]} 5. Nh4 {[%clk 0:03:01.4]}
5... Bg4 {[%clk 0:02:45.2]} 6. h3 {[%clk 0:03:01.3]} 6... Bh5 {[%clk 0:02:33.3]}
7. g4 {[%clk 0:03:01.5]} 7... Bg6 {[%clk 0:02:33.8]} 8. Bg2 {[%clk 0:03:01.7]}
8... e6 {[%clk 0:02:30.9]} 9. Qb3 {[%clk 0:02:58]} 9... Qc7 {[%clk 0:02:17.2]}
10. Nxg6 {[%clk 0:02:56]} 10... hxg6 {[%clk 0:02:17.2]} 11. e4 {[%clk
0:02:54.1]} 11... dxe4 {[%clk 0:02:05.5]} 12. Nxe4 {[%clk 0:02:55]} 12... Nbd7
{[%clk 0:02:05.4]} 13. Bg5 {[%clk 0:02:45.6]} 13... Qb6 {[%clk 0:01:41.7]} 14.
Bxf6 {[%clk 0:02:06.8]} 14... gxf6 {[%clk 0:01:29.5]} 15. c5 {[%clk 0:02:02.2]}
15... Qa5+ {[%clk 0:01:27.2]} 16. Qc3 {[%clk 0:01:59.3]} 16... Qc7 {[%clk
0:01:22.7]} 17. O-O-O {[%clk 0:01:55]} 17... f5 {[%clk 0:01:22.4]} 18. d5 {[%clk
0:01:45.8]} 18... cxd5 {[%clk 0:01:13]} 19. gxf5 {[%clk 0:01:18.2]} 19... gxf5
{[%clk 0:01:07.7]} 20. Qxh8 {[%clk 0:01:09.2]} 20... fxe4 {[%clk 0:01:07.1]} 21.
Kb1 {[%clk 0:00:37.2]} 21... O-O-O {[%clk 0:01:04.8]} 22. c6 {[%clk 0:00:33.5]}
22... bxc6 {[%clk 0:01:04.1]} 23. Qc3 {[%clk 0:00:29.5]} 23... Be7 {[%clk
0:00:42.9]} 24. Rc1 {[%clk 0:00:28]} 24... c5 {[%clk 0:00:42.6]} 25. h4 {[%clk
0:00:17.9]} 25... Bf6 {[%clk 0:00:42.4]} 26. Qa3 {[%clk 0:00:15.7]} 26... Qb6
{[%clk 0:00:34.3]} 27. Bf1 {[%clk 0:00:13.9]} 27... c4 {[%clk 0:00:29.6]} 28.
Rh2 {[%clk 0:00:06.9]} 28... Nc5 {[%clk 0:00:27.8]} 29. h5 {[%clk 0:00:06.5]}
29... Kd7 {[%clk 0:00:24.1]} 30. h6 {[%clk 0:00:06.4]} 30... Rb8 {[%clk
0:00:23.6]} 31. f3 {[%clk 0:00:05.7]} 31... c3 {[%clk 0:00:17.5]} 32. fxe4
{[%clk 0:00:03.3]} 32... cxb2 {[%clk 0:00:16.3]} 33. Rd1 {[%clk 0:00:03.4]}
33... Nxe4 {[%clk 0:00:15.6]} 34. Rh3 {[%clk 0:00:03.4]} 34... Nf2 {[%clk
0:00:13.9]} 35. Rb3 {[%clk 0:00:03.4]} 35... Nxd1 {[%clk 0:00:12.5]} 36. Rxb6
{[%clk 0:00:03.4]} 36... Rxb6 {[%clk 0:00:12.7]} 37. Qa4+ {[%clk 0:00:03]} 37...
Kd6 {[%clk 0:00:12.5]} 38. Qxd1 {[%clk 0:00:03.3]} 38... Rc6 {[%clk 0:00:13]}
39. Bd3 {[%clk 0:00:01.4]} 39... Rc1+ {[%clk 0:00:12.8]} 40. Qxc1 {[%clk
0:00:01.8]} 40... bxc1=Q+ {[%clk 0:00:13.5]} 41. Kxc1 {[%clk 0:00:02.7]} 41...
e5 {[%clk 0:00:13.7]} 42. Bf5 {[%clk 0:00:02.5]} 42... e4 {[%clk 0:00:13.9]} 43.
Kd2 {[%clk 0:00:02.8]} 43... Bg5+ {[%clk 0:00:13.4]} 44. Ke2 {[%clk 0:00:02.9]}
44... Bxh6 {[%clk 0:00:14.3]} 45. Bh7 {[%clk 0:00:01.3]} 45... Ke5 {[%clk
0:00:14.6]} 46. Bg8 {[%clk 0:00:01.7]} 46... f5 {[%clk 0:00:15.2]} 47. Bh7
{[%clk 0:00:02]} 47... f4 {[%clk 0:00:15.5]} 48. Kf1 {[%clk 0:00:02.1]} 48...
Kd4 {[%clk 0:00:15.8]} 49. Ke2 {[%clk 0:00:02.4]} 49... f3+ {[%clk 0:00:15.9]}
50. Kf1 {[%clk 0:00:02.6]} 50... Ke3 {[%clk 0:00:16.5]} 51. Bg8 {[%clk
0:00:02.3]} 51... d4 {[%clk 0:00:16.8]} 52. Bc4 {[%clk 0:00:02.7]} 52... d3
{[%clk 0:00:17.2]} 53. Bb3 {[%clk 0:00:03]} 53... Kd2 {[%clk 0:00:17]} 54. Kf2
{[%clk 0:00:03.3]} 54... Be3+ {[%clk 0:00:16.9]} 55. Kf1 {[%clk 0:00:03.5]}
55... Bc5 {[%clk 0:00:16.7]} 56. Bd5 {[%clk 0:00:02.2]} 56... e3 {[%clk
0:00:16.5]} 57. Bxf3 {[%clk 0:00:02.6]} 57... e2+ {[%clk 0:00:17.4]} 0-1

[Event "Late-Titled-Tuesday-Blitz-June-25-2024"]
[Site "Chess.com"]
[Date "2024.06.25"]
[Round "7"]
[White "PapaieDudu"]
[Black "Maus7"]
[Result "0-1"]
[WhiteElo "2458"]
[BlackElo "2660"]
[TimeControl "180+1"]
[EndTime "15:17:11 PDT"]
[Termination "Maus7 won on time"]

1. Nf3 {[%clk 0:03:00.9]} 1... Nf6 {[%clk 0:02:59.5]} 2. d4 {[%clk 0:03:01.2]}
2... d6 {[%clk 0:02:59.3]} 3. c4 {[%clk 0:03:01.7]} 3... Nc6 {[%clk 0:02:59.1]}
4. Nc3 {[%clk 0:03:02.1]} 4... e5 {[%clk 0:02:56.5]} 5. Bg5 {[%clk 0:03:01.7]}
5... exd4 {[%clk 0:02:53.1]} 6. Nxd4 {[%clk 0:03:02.1]} 6... Be7 {[%clk
0:02:52.8]} 7. e3 {[%clk 0:03:02]} 7... O-O {[%clk 0:02:52.1]} 8. Be2 {[%clk
0:03:02.6]} 8... h6 {[%clk 0:02:44]} 9. Bh4 {[%clk 0:03:02.5]} 9... Nxd4 {[%clk
0:02:36.9]} 10. Qxd4 {[%clk 0:03:01]} 10... Be6 {[%clk 0:02:36.8]} 11. Bf3
{[%clk 0:03:00.7]} 11... c6 {[%clk 0:02:32.8]} 12. O-O-O {[%clk 0:02:55.1]}
12... Rc8 {[%clk 0:01:49.6]} 13. Kb1 {[%clk 0:02:53.9]} 13... a6 {[%clk
0:01:45.2]} 14. g4 {[%clk 0:02:52.9]} 14... c5 {[%clk 0:01:25.3]} 15. Qf4 {[%clk
0:02:16.5]} 15... b5 {[%clk 0:00:50.9]} 16. g5 {[%clk 0:02:10.4]} 16... Nh7
{[%clk 0:00:48.7]} 17. gxh6 {[%clk 0:01:40.8]} 17... Bxh4 {[%clk 0:00:47.8]} 18.
hxg7 {[%clk 0:01:38.4]} 18... Kxg7 {[%clk 0:00:32.5]} 19. Rhg1+ {[%clk
0:01:16.7]} 19... Kh8 {[%clk 0:00:32.1]} 20. Ne4 {[%clk 0:00:48.5]} 20... Qe7
{[%clk 0:00:31.4]} 21. Nxd6 {[%clk 0:00:42.2]} 21... Rcd8 {[%clk 0:00:29.6]} 22.
Be4 {[%clk 0:00:22.7]} 22... Bg5 {[%clk 0:00:19.1]} 23. Qe5+ {[%clk 0:00:13.8]}
23... f6 {[%clk 0:00:18.7]} 24. Qxc5 {[%clk 0:00:13.1]} 24... f5 {[%clk
0:00:18.3]} 25. Bc2 {[%clk 0:00:03.7]} 25... bxc4 {[%clk 0:00:18]} 26. Qd4+
{[%clk 0:00:03]} 26... Bf6 {[%clk 0:00:18]} 27. Qc5 {[%clk 0:00:03.5]} 27... Rd7
{[%clk 0:00:15.9]} 28. Qa3 {[%clk 0:00:03.5]} 28... Rb8 {[%clk 0:00:15.4]} 29.
b3 {[%clk 0:00:01.5]} 29... cxb3 {[%clk 0:00:14.3]} 30. axb3 {[%clk 0:00:02.4]}
30... Rb6 {[%clk 0:00:14]} 31. Nc4 {[%clk 0:00:02.6]} 31... Bxc4 {[%clk
0:00:13.6]} 32. Qxe7 {[%clk 0:00:02.6]} 32... Rxd1+ {[%clk 0:00:13.1]} 33. Rxd1
{[%clk 0:00:01.7]} 33... Bxe7 {[%clk 0:00:13.5]} 34. Rd7 {[%clk 0:00:01.7]}
34... Bf6 {[%clk 0:00:11.9]} 35. Bxf5 {[%clk 0:00:02.2]} 35... Bxb3 {[%clk
0:00:11.3]} 36. Rxh7+ {[%clk 0:00:01.5]} 36... Kg8 {[%clk 0:00:11.8]} 37. Rc7
{[%clk 0:00:01.7]} 37... Be6+ {[%clk 0:00:11]} 38. Kc1 {[%clk 0:00:01.2]} 38...
Bxf5 {[%clk 0:00:11.2]} 39. f3 {[%clk 0:00:01.5]} 39... Be6 {[%clk 0:00:09.6]}
40. e4 {[%clk 0:00:01.5]} 40... Kf8 {[%clk 0:00:09.9]} 41. f4 {[%clk 0:00:02]}
41... Rb4 {[%clk 0:00:08.7]} 42. e5 {[%clk 0:00:01.9]} 42... Be7 {[%clk
0:00:08.4]} 43. Ra7 {[%clk 0:00:01.3]} 43... Rxf4 {[%clk 0:00:06.7]} 44. Rxa6
{[%clk 0:00:02]} 44... Rf1+ {[%clk 0:00:06.8]} 45. Kd2 {[%clk 0:00:02.6]} 45...
Kf7 {[%clk 0:00:06.7]} 46. Ke3 {[%clk 0:00:02.4]} 46... Rh1 {[%clk 0:00:06.4]}
47. h4 {[%clk 0:00:01]} 47... Rxh4 {[%clk 0:00:06.1]} 48. Ra1 {[%clk 0:00:01.1]}
48... Bc5+ {[%clk 0:00:05.8]} 49. Kd3 {[%clk 0:00:01.2]} 49... Bd5 {[%clk
0:00:05.3]} 50. Rf1+ {[%clk 0:00:01.2]} 50... Ke6 {[%clk 0:00:05.1]} 0-1

[Event "Late-Titled-Tuesday-Blitz-June-25-2024"]
[Site "Chess.com"]
[Date "2024.06.25"]
[Round "7"]
[White "anthonydrayton"]
[Black "IngOscarArdila"]
[Result "1-0"]
[WhiteElo "2128"]
[BlackElo "2348"]
[TimeControl "180+1"]
[EndTime "15:17:15 PDT"]
[Termination "anthonydrayton won by resignation"]

1. d4 {[%clk 0:03:00.9]} 1... Nf6 {[%clk 0:03:00]} 2. Bf4 {[%clk 0:03:00]} 2...
e6 {[%clk 0:02:59.6]} 3. Nc3 {[%clk 0:02:57.9]} 3... Be7 {[%clk 0:03:00.2]} 4.
e4 {[%clk 0:02:57.2]} 4... d6 {[%clk 0:03:00.5]} 5. Qd2 {[%clk 0:02:57.2]} 5...
Nbd7 {[%clk 0:03:00.2]} 6. f3 {[%clk 0:02:57.1]} 6... h6 {[%clk 0:02:58.2]} 7.
h4 {[%clk 0:02:54.9]} 7... e5 {[%clk 0:02:58.3]} 8. dxe5 {[%clk 0:02:52.9]} 8...
Nxe5 {[%clk 0:02:57.9]} 9. O-O-O {[%clk 0:02:49.2]} 9... Be6 {[%clk 0:02:57.5]}
10. Qe3 {[%clk 0:02:46.5]} 10... Qc8 {[%clk 0:02:56.6]} 11. g4 {[%clk
0:02:37.5]} 11... Nc4 {[%clk 0:02:46.4]} 12. Bxc4 {[%clk 0:02:36.6]} 12... Bxc4
{[%clk 0:02:47.3]} 13. b3 {[%clk 0:02:24.7]} 13... Be6 {[%clk 0:02:44.5]} 14.
Nd5 {[%clk 0:02:24.7]} 14... Bxd5 {[%clk 0:02:33.5]} 15. exd5 {[%clk 0:02:25.6]}
15... O-O {[%clk 0:02:32.1]} 16. Bxh6 {[%clk 0:02:06.6]} 16... gxh6 {[%clk
0:02:21.4]} 17. Qxe7 {[%clk 0:02:03.2]} 17... Qd8 {[%clk 0:02:16.9]} 18. Qe3
{[%clk 0:02:01.9]} 18... Kg7 {[%clk 0:02:15.6]} 19. g5 {[%clk 0:01:58.7]} 19...
Ng8 {[%clk 0:02:14.5]} 20. Nh3 {[%clk 0:01:54.7]} 20... Re8 {[%clk 0:02:13.5]}
21. gxh6+ {[%clk 0:01:54.1]} 21... Kh8 {[%clk 0:02:03.3]} 22. Qd2 {[%clk
0:01:44.4]} 22... Qf6 {[%clk 0:02:00.8]} 23. Kb1 {[%clk 0:01:42.4]} 23... Qxh6
{[%clk 0:01:58.8]} 24. Ng5 {[%clk 0:01:41.5]} 24... Re7 {[%clk 0:01:49.5]} 25.
Rde1 {[%clk 0:01:38.8]} 25... Rxe1+ {[%clk 0:01:31.5]} 26. Qxe1 {[%clk
0:01:27.2]} 26... Qf6 {[%clk 0:01:27.8]} 27. Rg1 {[%clk 0:01:20.5]} 27... Nh6
{[%clk 0:01:27.7]} 28. Qe4 {[%clk 0:01:16.4]} 28... Qg6 {[%clk 0:01:21.3]} 29.
Qe7 {[%clk 0:01:13.4]} 29... f6 {[%clk 0:01:00.2]} 30. Nh3 {[%clk 0:01:11.8]}
30... Qf7 {[%clk 0:00:45.2]} 31. Qe3 {[%clk 0:01:05.4]} 31... Nf5 {[%clk
0:00:36.5]} 32. Qf4 {[%clk 0:01:04.8]} 32... Qh5 {[%clk 0:00:35.8]} 33. Ng5
{[%clk 0:00:47.6]} 33... Qg6 {[%clk 0:00:20.6]} 34. Nf7+ {[%clk 0:00:43.5]}
34... Qxf7 {[%clk 0:00:18.3]} 35. Qxf5 {[%clk 0:00:43.9]} 35... Rg8 {[%clk
0:00:13.4]} 36. Rxg8+ {[%clk 0:00:38.4]} 36... Kxg8 {[%clk 0:00:14.3]} 37. Qc8+
{[%clk 0:00:37.7]} 37... Kh7 {[%clk 0:00:12]} 38. Qxb7 {[%clk 0:00:38.1]} 38...
Qe7 {[%clk 0:00:11.4]} 39. a4 {[%clk 0:00:33.6]} 39... a5 {[%clk 0:00:10.6]} 40.
Qc6 {[%clk 0:00:29.3]} 40... Qe1+ {[%clk 0:00:10]} 41. Ka2 {[%clk 0:00:28.5]}
41... Qe7 {[%clk 0:00:09.7]} 42. Qc3 {[%clk 0:00:27.8]} 42... Kg6 {[%clk
0:00:07.9]} 43. Qd3+ {[%clk 0:00:27.5]} 43... Kh5 {[%clk 0:00:08.1]} 44. Qd4
{[%clk 0:00:24.8]} 44... Qe2 {[%clk 0:00:04.4]} 45. Qg4+ {[%clk 0:00:24.5]}
45... Kh6 {[%clk 0:00:03.6]} 46. Qf4+ {[%clk 0:00:22]} 46... Kg7 {[%clk
0:00:02.9]} 47. Qe4 {[%clk 0:00:19.3]} 47... Qd2 {[%clk 0:00:03.3]} 48. Kb2
{[%clk 0:00:17.7]} 48... Qd1 {[%clk 0:00:02.1]} 49. h5 {[%clk 0:00:17.7]} 49...
Qd2 {[%clk 0:00:02.5]} 50. Qg6+ {[%clk 0:00:17.7]} 50... Kf8 {[%clk 0:00:02]}
51. Qxf6+ {[%clk 0:00:18.2]} 51... Ke8 {[%clk 0:00:02.9]} 52. h6 {[%clk
0:00:18.7]} 52... Kd7 {[%clk 0:00:02.9]} 53. h7 {[%clk 0:00:18.5]} 53... Qh2
{[%clk 0:00:03]} 54. Qf7+ {[%clk 0:00:18.1]} 54... Kc8 {[%clk 0:00:03.4]} 55.
Qf8+ {[%clk 0:00:18.4]} 55... Kb7 {[%clk 0:00:04.3]} 56. h8=Q {[%clk 0:00:19]}
56... Qe5+ {[%clk 0:00:04.4]} 57. Qxe5 {[%clk 0:00:19.2]} 1-0

[Event "Late-Titled-Tuesday-Blitz-June-25-2024"]
[Site "Chess.com"]
[Date "2024.06.25"]
[Round "7"]
[White "simaopdias"]
[Black "mostafa_sakha"]
[Result "1-0"]
[WhiteElo "2257"]
[BlackElo "2418"]
[TimeControl "180+1"]
[EndTime "15:17:18 PDT"]
[Termination "simaopdias won on time"]

1. e4 {[%clk 0:03:00.3]} 1... e5 {[%clk 0:02:59.3]} 2. Nf3 {[%clk 0:03:00.6]}
2... Nc6 {[%clk 0:02:59.7]} 3. Bb5 {[%clk 0:03:01]} 3... a6 {[%clk 0:03:00.1]}
4. Ba4 {[%clk 0:03:01]} 4... Nf6 {[%clk 0:02:59.9]} 5. d3 {[%clk 0:03:01.3]}
5... b5 {[%clk 0:02:59.2]} 6. Bb3 {[%clk 0:03:01.5]} 6... Be7 {[%clk 0:03:00.1]}
7. c3 {[%clk 0:03:02]} 7... O-O {[%clk 0:02:59.6]} 8. Nbd2 {[%clk 0:03:02.7]}
8... d5 {[%clk 0:02:59.1]} 9. O-O {[%clk 0:03:03]} 9... d4 {[%clk 0:02:57.9]}
10. Re1 {[%clk 0:03:02.7]} 10... a5 {[%clk 0:02:57.6]} 11. h3 {[%clk 0:02:58.3]}
11... a4 {[%clk 0:02:56.9]} 12. Bc2 {[%clk 0:02:58.4]} 12... dxc3 {[%clk
0:02:56.7]} 13. bxc3 {[%clk 0:02:58.4]} 13... Nd7 {[%clk 0:02:57.1]} 14. d4
{[%clk 0:02:55.8]} 14... Bd6 {[%clk 0:02:45.7]} 15. Qe2 {[%clk 0:02:51.1]} 15...
Ba6 {[%clk 0:02:44.1]} 16. Bd3 {[%clk 0:02:51.7]} 16... Rb8 {[%clk 0:02:40.3]}
17. Rb1 {[%clk 0:02:50]} 17... exd4 {[%clk 0:02:28]} 18. Nxd4 {[%clk 0:02:45.9]}
18... Nxd4 {[%clk 0:02:22.6]} 19. cxd4 {[%clk 0:02:46.8]} 19... c6 {[%clk
0:02:16.3]} 20. Nf3 {[%clk 0:02:45.3]} 20... Re8 {[%clk 0:02:12.4]} 21. Qc2
{[%clk 0:02:43.3]} 21... Nf8 {[%clk 0:01:30]} 22. Bg5 {[%clk 0:02:40.4]} 22...
f6 {[%clk 0:01:28.5]} 23. Bd2 {[%clk 0:02:32.9]} 23... Qb6 {[%clk 0:01:23.2]}
24. e5 {[%clk 0:02:24.6]} 24... fxe5 {[%clk 0:01:22.6]} 25. dxe5 {[%clk
0:02:23]} 25... Bc5 {[%clk 0:01:22.3]} 26. Bf4 {[%clk 0:02:16.4]} 26... Re6
{[%clk 0:01:15.3]} 27. Bf5 {[%clk 0:02:15.1]} 27... Rbe8 {[%clk 0:01:10.6]} 28.
Rec1 {[%clk 0:02:08.4]} 28... Ba3 {[%clk 0:01:06.9]} 29. Rd1 {[%clk 0:02:02.8]}
29... c5 {[%clk 0:01:06.2]} 30. Bxe6+ {[%clk 0:01:57]} 30... Nxe6 {[%clk
0:01:05.8]} 31. Be3 {[%clk 0:01:57.2]} 31... Qc7 {[%clk 0:01:00.7]} 32. Rd6
{[%clk 0:01:44.6]} 32... Bb7 {[%clk 0:00:56.6]} 33. Rxb5 {[%clk 0:01:43.2]}
33... Bxf3 {[%clk 0:00:56.1]} 34. gxf3 {[%clk 0:01:37.2]} 34... c4 {[%clk
0:00:56.1]} 35. Rd1 {[%clk 0:01:23.9]} 35... c3 {[%clk 0:00:49.7]} 36. f4 {[%clk
0:01:16.1]} 36... g6 {[%clk 0:00:17.7]} 37. Qxa4 {[%clk 0:01:15.3]} 37... Bf8
{[%clk 0:00:15]} 38. Qb3 {[%clk 0:01:13.2]} 38... Qf7 {[%clk 0:00:13.5]} 39. Rb7
{[%clk 0:01:11.6]} 39... Be7 {[%clk 0:00:12.1]} 40. Qxc3 {[%clk 0:01:04.8]}
40... Ng7 {[%clk 0:00:10.3]} 41. Qb3 {[%clk 0:01:03.5]} 41... Ne6 {[%clk
0:00:08.7]} 42. Rdd7 {[%clk 0:01:00.2]} 42... Kf8 {[%clk 0:00:06.7]} 43. a4
{[%clk 0:00:58]} 43... Qf5 {[%clk 0:00:06]} 44. Bc1 {[%clk 0:00:36]} 44... Nc5
{[%clk 0:00:03]} 45. Qd5 {[%clk 0:00:26]} 45... Nxb7 {[%clk 0:00:02.7]} 46. Qxb7
{[%clk 0:00:19.5]} 46... Qxh3 {[%clk 0:00:02.5]} 47. Rxe7 {[%clk 0:00:06.1]}
47... Rxe7 {[%clk 0:00:02]} 48. Qb8+ {[%clk 0:00:06.6]} 48... Kf7 {[%clk
0:00:02]} 49. Qb3+ {[%clk 0:00:06.2]} 1-0